bitfinex-derivatives/quotes_BTCF0:USTF0_20241006
["timestamp","ask_amount","ask_price","bid_price","bid_amount"]
[1728243058645,0.03340492,62961.0,62960.0,0.13004775]
[1728243059352,0.03340492,62961.0,62960.0,0.22427003]
[1728243059733,0.3608,62971.0,62961.0,0.063528]
[1728243059936,0.063519,62970.0,62967.0,0.07881413]
[1728243060139,0.063519,62970.0,62969.0,0.07881413]
[1728243061049,0.064519,62970.0,62969.0,0.07881413]
[1728243061248,0.064519,62970.0,62969.0,0.12104182]
[1728243062353,0.001,62970.0,62969.0,0.12104182]
[1728243062646,0.002,62970.0,62969.0,0.12104182]
[1728243063055,0.001,62970.0,62969.0,0.12104182]
[1728243063357,0.002,62970.0,62969.0,0.12204182]
[1728243065348,0.002,62970.0,62969.0,0.001]
[1728243066854,0.002,62970.0,62962.0,0.0037]
[1728243066855,0.063525,62964.0,62962.0,0.0037]
[1728243067039,0.47844,62970.0,62956.0,0.0037]
[1728243067040,0.06353,62959.0,62956.0,0.0037]
[1728243067246,0.16,62956.0,62953.0,0.3608]
[1728243069549,0.161,62956.0,62953.0,0.3698]
[1728243070053,0.161,62956.0,62953.0,0.3778]
[1728243070251,0.18421924,62956.0,62953.0,0.3778]
[1728243070548,0.18421924,62956.0,62953.0,0.017]
[1728243070947,0.24775224,62956.0,62953.0,0.017]
[1728243071143,0.28105224,62956.0,62953.0,0.017]
[1728243073547,0.063534,62955.0,62953.0,0.017]
[1728243073755,0.05751924,62956.0,62954.0,0.44199524]
[1728243074056,0.12105224,62956.0,62955.0,0.26837625]
[1728243074271,0.72105224,62956.0,62955.0,0.26837625]
[1728243074452,1.19757224,62956.0,62955.0,0.26837625]
[1728243074646,1.19757224,62956.0,62955.0,0.26799492]
[1728243074955,1.35657224,62956.0,62955.0,0.26799492]
[1728243075353,1.35657224,62956.0,62955.0,0.1210445]
[1728243075655,0.063541,62948.0,62947.0,0.11785099]
[1728243075860,0.81651924,62956.0,62936.0,0.17231696]
[1728243075861,0.063543,62946.0,62944.0,0.11045099]
[1728243076059,0.47656,62955.0,62939.0,0.11046997]
[1728243076060,0.5208,62945.0,62939.0,0.11046997]
[1728243076246,0.16,62941.0,62934.0,0.00238335]
[1728243076446,0.16,62937.0,62934.0,0.00238335]
[1728243076648,0.0317,62944.0,62935.0,0.33364412]
[1728243076947,0.16,62943.0,62937.0,0.063552]
[1728243077157,0.16,62943.0,62938.0,0.17364412]
[1728243077457,0.16,62939.0,62934.0,0.01638335]
[1728243077649,0.16,62935.0,62934.0,0.01638335]
[1728243077846,0.16,62935.0,62934.0,0.38995812]
[1728243078054,0.16,62935.0,62934.0,0.19002537]
[1728243079066,0.16,62935.0,62934.0,0.17702537]
[1728243079067,0.161,62935.0,62934.0,0.17702537]
[1728243079561,0.16,62935.0,62934.0,0.00238335]
[1728243079757,0.162,62935.0,62934.0,0.01238335]
[1728243080355,0.063561,62928.0,62925.0,0.0074]
[1728243080564,0.063561,62928.0,62917.0,0.063571]
[1728243080565,0.1904,62927.0,62917.0,0.063571]
[1728243080754,0.1904,62927.0,62918.0,0.17365733]
[1728243080755,0.16,62922.0,62918.0,0.17365733]
[1728243080950,0.16,62922.0,62919.0,0.17365733]
[1728243081159,0.06357,62919.0,62909.0,0.0074]
[1728243081466,0.16,62910.0,62905.0,0.424383]
[1728243081960,0.16,62913.0,62905.0,0.063583]
[1728243082163,0.16,62917.0,62906.0,0.16]
[1728243082370,0.16,62917.0,62909.0,0.001]
[1728243083562,0.161,62917.0,62909.0,0.009]
[1728243083764,0.16,62913.0,62909.0,0.009]
[1728243083971,0.001,62917.0,62909.0,0.009]
[1728243083972,0.16,62910.0,62909.0,0.009]
[1728243084357,0.16,62910.0,62909.0,0.008]
[1728243085161,0.161,62910.0,62909.0,0.009]
[1728243085665,0.001,62910.0,62909.0,0.009]
[1728243085968,0.001,62910.0,62909.0,0.001]
[1728243086268,0.002,62910.0,62909.0,0.008]
[1728243088571,0.002,62910.0,62909.0,0.08650117]
[1728243088768,0.002,62910.0,62909.0,0.008]
[1728243089661,0.001,62910.0,62909.0,0.001]
[1728243089869,0.002,62910.0,62909.0,0.008]
[1728243090671,1.07888,62910.0,62896.0,0.0311]
[1728243090871,0.16,62901.0,62900.0,0.3608]
[1728243091967,0.001,62901.0,62900.0,0.3618]
[1728243093980,0.002,62901.0,62900.0,0.3618]
[1728243094868,0.162,62901.0,62900.0,0.3618]
[1728243095669,0.63896,62901.0,62900.0,0.3618]
[1728243095869,1.23896,62901.0,62900.0,0.3618]
[1728243096179,1.26203619,62901.0,62900.0,0.3618]
[1728243096674,0.66203619,62901.0,62900.0,0.3618]
[1728243096863,1.26203619,62901.0,62900.0,0.3618]
[1728243097178,0.18507619,62901.0,62900.0,0.3618]
[1728243097377,0.162,62901.0,62900.0,0.3618]
[1728243101673,0.162,62901.0,62900.0,0.3608]
[1728243104376,0.162,62901.0,62897.0,0.3608]
[1728243105476,0.161,62901.0,62897.0,0.3608]
[1728243105664,0.162,62901.0,62897.0,0.3608]
[1728243106382,0.162,62901.0,62889.0,0.37230509]
[1728243106683,0.16,62892.0,62891.0,0.0037]
[1728243106887,0.16,62892.0,62890.0,0.0311]
[1728243107973,0.161,62892.0,62890.0,0.0311]
[1728243108375,0.16,62892.0,62890.0,0.0311]
[1728243108574,0.161,62892.0,62890.0,0.0311]
[1728243108775,0.162,62892.0,62890.0,0.0311]
[1728243110080,0.18513034,62892.0,62890.0,0.0311]
[1728243111785,0.17,62891.0,62890.0,0.0311]
[1728243112877,0.17,62891.0,62889.0,0.00238509]
[1728243112878,0.063599,62890.0,62889.0,0.00238509]
[1728243114287,0.064599,62890.0,62884.0,0.0037]
[1728243114583,0.17,62885.0,62882.0,0.0319]
[1728243115177,0.17,62885.0,62876.0,0.41160083]
[1728243115377,0.001,62890.0,62876.0,0.41160083]
[1728243115378,0.17,62877.0,62876.0,0.40790083]
[1728243115577,0.17,62877.0,62876.0,0.3608]
[1728243115873,0.17,62877.0,62874.0,0.0326]
[1728243117682,0.19441688,62877.0,62874.0,0.0326]
[1728243118388,0.19541688,62877.0,62874.0,0.0326]
[1728243118989,0.002,62877.0,62874.0,0.0326]
[1728243120183,0.172,62877.0,62874.0,0.0326]
[1728243121284,0.02280257,62881.0,62875.0,0.063614]
[1728243121586,0.17,62882.0,62875.0,0.094114]
[1728243121985,0.001,62877.0,62875.0,0.094114]
[1728243122380,0.002,62877.0,62875.0,0.094114]
[1728243122580,0.001,62877.0,62875.0,0.094114]
[1728243123886,0.171,62882.0,62875.0,0.094114]
[1728243124083,0.172,62882.0,62875.0,0.095114]
[1728243124592,0.002,62877.0,62875.0,0.096114]
[1728243125186,0.001,62877.0,62875.0,0.097114]
[1728243125390,0.172,62882.0,62875.0,0.098114]
[1728243125586,0.172,62882.0,62875.0,0.0345]
[1728243126088,0.171,62882.0,62875.0,0.0325]
[1728243126385,0.001,62877.0,62875.0,0.0345]
[1728243126787,0.17,62882.0,62875.0,0.0335]
[1728243127091,0.001,62877.0,62875.0,0.0335]
[1728243127594,0.17,62878.0,62875.0,0.0335]
[1728243127791,0.17,62878.0,62875.0,0.0325]
[1728243127995,0.17,62878.0,62875.0,0.002]
[1728243128496,0.063613,62877.0,62875.0,0.001]
[1728243128696,0.065613,62877.0,62875.0,0.002]
[1728243128883,0.01701471,62876.0,62875.0,0.002]
[1728243130794,0.01801471,62876.0,62875.0,0.002]
[1728243131494,0.01801471,62876.0,62875.0,0.001]
[1728243131797,0.01901471,62876.0,62875.0,0.004]
[1728243131987,0.0415897,62876.0,62875.0,0.004]
[1728243132182,0.01901471,62876.0,62875.0,0.004]
[1728243132993,0.04214209,62876.0,62875.0,0.004]
[1728243133600,1.11926209,62876.0,62875.0,0.004]
[1728243133780,0.06362,62870.0,62869.0,0.0037]
[1728243133983,0.06362,62870.0,62865.0,0.0111]
[1728243133984,0.063628,62862.0,62859.0,0.04710083]
[1728243134286,0.18701471,62860.0,62858.0,0.0327]
[1728243134687,0.19488418,62860.0,62858.0,0.0327]
[1728243134991,0.01701471,62859.0,62858.0,0.0327]
[1728243135584,1.09429471,62859.0,62855.0,0.3608]
[1728243135891,0.17,62856.0,62850.0,0.36252]
[1728243136091,0.17,62851.0,62850.0,0.3608]
[1728243136591,0.18701471,62851.0,62850.0,0.3608]
[1728243137984,0.18801471,62851.0,62850.0,0.3608]
[1728243138591,0.18901471,62851.0,62850.0,0.3608]
[1728243141198,0.18901471,62851.0,62845.0,0.063645]
[1728243141603,0.01701471,62846.0,62845.0,0.063645]
[1728243144797,0.01901471,62846.0,62845.0,0.063645]
[1728243146604,0.01901471,62846.0,62845.0,0.424445]
[1728243146812,0.01901471,62846.0,62845.0,0.063645]
[1728243147107,0.01901471,62846.0,62845.0,0.424445]
[1728243151405,0.01901471,62846.0,62845.0,0.3608]
[1728243151606,0.18901471,62846.0,62845.0,0.3608]
[1728243152497,0.18901471,62846.0,62844.0,0.07889328]
[1728243152498,0.063645,62845.0,62844.0,0.07889328]
[1728243153105,0.08065971,62845.0,62844.0,0.07889328]
[1728243153410,0.08065971,62845.0,62842.0,0.00238687]
[1728243153411,0.063647,62843.0,62842.0,0.00238687]
[1728243153606,0.18701471,62843.0,62833.0,0.0111]
[1728243153911,0.17,62838.0,62829.0,0.3912]
[1728243154213,0.25066671,62838.0,62829.0,0.3912]
[1728243155906,0.25166671,62838.0,62829.0,0.3912]
[1728243156111,0.18801471,62838.0,62833.0,0.04731743]
[1728243156306,0.01801471,62838.0,62836.0,0.04731743]
[1728243156508,0.01801471,62838.0,62829.0,0.56292]
[1728243156509,0.01901471,62838.0,62837.0,0.0328]
[1728243156710,0.18901471,62838.0,62837.0,0.0328]
[1728243157304,0.18801471,62838.0,62837.0,0.0328]
[1728243161500,0.01801471,62838.0,62837.0,0.0328]
[1728243163510,0.13227274,62842.0,62837.0,0.15407861]
[1728243163709,0.13227274,62842.0,62838.0,0.21612354]
[1728243163910,0.13227274,62842.0,62839.0,0.1212784]
[1728243164115,0.13227274,62842.0,62838.0,0.09484514]
[1728243164116,0.13227274,62842.0,62840.0,0.1212784]
[1728243164409,0.13227274,62842.0,62841.0,0.1517784]
[1728243164600,0.13227274,62842.0,62841.0,0.5125784]
[1728243165199,0.13327274,62842.0,62841.0,0.5125784]
[1728243165418,0.001,62842.0,62841.0,0.5125784]
[1728243166220,0.001,62842.0,62841.0,0.67107254]
[1728243166401,0.001,62842.0,62841.0,0.67110136]
[1728243166711,0.003,62842.0,62841.0,0.67110136]
[1728243166916,0.003,62842.0,62841.0,0.5762274]
[1728243167206,0.0037,62849.0,62841.0,1.13757776]
[1728243167410,0.17,62850.0,62844.0,0.09487561]
[1728243167614,0.17,62850.0,62845.0,0.21615401]
[1728243167802,0.17,62850.0,62846.0,0.1212784]
[1728243167999,0.17,62850.0,62847.0,0.1212784]
[1728243168203,0.17,62850.0,62849.0,0.3608]
[1728243168506,0.02287517,62853.0,62849.0,0.4820784]
[1728243168810,0.17,62854.0,62850.0,0.1212784]
[1728243169016,0.17,62854.0,62851.0,0.12125802]
[1728243169309,0.17,62854.0,62852.0,0.12125802]
[1728243169513,0.17,62854.0,62850.0,0.0301]
[1728243169708,0.17,62854.0,62851.0,0.12125304]
[1728243170013,0.17,62854.0,62852.0,0.12125304]
[1728243170310,0.17,62854.0,62850.0,0.0301]
[1728243170512,0.177,62854.0,62852.0,0.001]
[1728243171119,0.177,62854.0,62853.0,0.033]
[1728243172409,0.177,62854.0,62853.0,0.08041125]
[1728243172719,0.178,62854.0,62853.0,0.033]
[1728243172914,0.178,62854.0,62850.0,0.09331869]
[1728243173101,0.17,62851.0,62850.0,0.06321869]
[1728243173304,0.17,62851.0,62841.0,0.424449]
[1728243173305,0.17,62851.0,62847.0,0.0474185]
[1728243173506,0.17,62848.0,62844.0,0.0474185]
[1728243174110,0.17,62848.0,62845.0,0.0474185]
[1728243174311,0.001,62854.0,62847.0,0.1110605]
[1728243174312,0.17,62852.0,62847.0,0.1110605]
[1728243174513,0.17,62852.0,62851.0,0.04742304]
[1728243174819,0.17,62852.0,62850.0,0.04742304]
[1728243176313,0.17,62852.0,62850.0,0.05042304]
[1728243177017,0.175,62852.0,62850.0,0.05042304]
[1728243178312,0.175,62852.0,62850.0,0.003]
[1728243183020,0.238638,62852.0,62850.0,0.003]
[1728243185312,0.175,62852.0,62850.0,0.003]
[1728243185720,0.175,62852.0,62851.0,0.0621]
[1728243186229,0.005,62852.0,62851.0,0.0621]
[1728243186917,0.17,62858.0,62851.0,0.0621]
[1728243187222,0.17,62858.0,62852.0,0.063638]
[1728243188329,0.17,62858.0,62855.0,0.3608]
[1728243189125,0.006,62858.0,62855.0,0.3608]
[1728243189325,0.006,62858.0,62856.0,0.063633]
[1728243189527,0.006,62858.0,62855.0,0.7216]
[1728243189528,0.0037,62863.0,62857.0,0.063632]
[1728243189826,0.01,62858.0,62856.0,0.11105704]
[1728243190024,0.01,62858.0,62857.0,0.04742304]
[1728243190236,0.00238722,62864.0,62859.0,0.06363]
[1728243190425,0.00238722,62864.0,62862.0,0.063628]
[1728243190727,0.00238722,62864.0,62863.0,0.0631]
[1728243190940,0.0037,62871.0,62863.0,0.126726]
[1728243191133,0.0324,62874.0,62864.0,0.0314]
[1728243191328,0.063617,62873.0,62864.0,0.0314]
[1728243191634,0.063617,62873.0,62864.0,0.095025]
[1728243192535,0.17,62870.0,62864.0,0.095025]
[1728243192726,0.013,62864.0,62863.0,0.031]
[1728243193435,0.17,62866.0,62864.0,0.001]
[1728243193624,0.0570593,62865.0,62864.0,0.001]
[1728243194022,0.006,62864.0,62863.0,0.032]
[1728243195520,0.006,62864.0,62863.0,0.001]
[1728243195726,0.006,62864.0,62863.0,0.002]
[1728243195928,0.069626,62864.0,62863.0,0.002]
[1728243196434,0.069626,62864.0,62863.0,0.001]
[1728243196435,0.063626,62864.0,62863.0,0.001]
[1728243197328,0.004,62864.0,62863.0,0.001]
[1728243200429,0.004,62864.0,62863.0,0.3618]
[1728243203630,0.237626,62864.0,62863.0,0.3618]
[1728243207138,0.237626,62864.0,62863.0,0.001]
[1728243208841,0.29468739,62864.0,62863.0,0.001]
[1728243213732,0.063634,62856.0,62855.0,0.0037]
[1728243213936,0.063635,62855.0,62847.0,0.0037]
[1728243214136,0.17,62852.0,62846.0,0.0309]
[1728243214367,0.17,62848.0,62844.0,0.3608]
[1728243214544,0.05706538,62847.0,62844.0,0.3608]
[1728243214735,0.05706538,62847.0,62842.0,0.00238675]
[1728243214736,0.063644,62846.0,62842.0,0.00238675]
[1728243214939,0.17,62843.0,62842.0,0.00238675]
[1728243215144,0.22706538,62843.0,62838.0,0.0641]
[1728243215336,0.17,62839.0,62838.0,0.0641]
[1728243215534,0.22706538,62839.0,62838.0,0.0641]
[1728243216643,0.171,62839.0,62838.0,0.0781]
[1728243217149,0.172,62839.0,62838.0,0.0831]
[1728243217335,0.172,62839.0,62838.0,0.0502]
[1728243217731,0.172,62839.0,62838.0,0.019]
[1728243220848,0.2052,62839.0,62838.0,0.019]
[1728243221646,0.22824877,62839.0,62838.0,0.019]
[1728243222645,0.22824877,62839.0,62838.0,0.02]
[1728243222839,0.22824877,62839.0,62838.0,0.015]
[1728243223145,0.26064877,62839.0,62838.0,0.015]
[1728243226541,0.19504877,62839.0,62838.0,0.015]
[1728243227240,0.19504877,62839.0,62830.0,0.0037]
[1728243227241,0.063659,62831.0,62830.0,0.0037]
[1728243227441,0.063661,62830.0,62824.0,0.0332]
[1728243227644,0.17,62826.0,62824.0,0.0332]
[1728243229238,0.233664,62826.0,62824.0,0.0332]
[1728243229445,0.233664,62826.0,62819.0,0.0652]
[1728243229761,0.233664,62826.0,62819.0,0.0615]
[1728243229762,0.17,62820.0,62819.0,0.0615]
[1728243230550,0.17,62820.0,62819.0,0.0303]
[1728243230940,0.17,62820.0,62817.0,0.36318733]
[1728243231144,0.171,62820.0,62817.0,0.00238733]
[1728243231343,0.171,62820.0,62811.0,0.0037]
[1728243231545,0.171,62820.0,62809.0,0.00172]
[1728243231546,0.17,62812.0,62809.0,0.00172]
[1728243231736,0.17,62812.0,62804.0,0.3608]
[1728243231937,0.17,62808.0,62804.0,0.3608]
[1728243232953,0.17,62808.0,62804.0,0.3648]
[1728243233352,0.17,62808.0,62804.0,0.3608]
[1728243233549,0.17,62808.0,62804.0,0.3648]
[1728243233550,0.234683,62808.0,62804.0,0.3648]
[1728243233756,0.171,62808.0,62804.0,0.3648]
[1728243234252,0.172,62808.0,62804.0,0.3648]
[1728243234453,0.172,62808.0,62805.0,0.063685]
[1728243234849,0.172,62808.0,62806.0,0.063684]
[1728243235842,0.19500804,62808.0,62806.0,0.063684]
[1728243236047,0.172,62808.0,62806.0,0.063684]
[1728243236559,0.172,62808.0,62806.0,0.067684]
[1728243236956,0.172,62808.0,62806.0,0.004]
[1728243238855,0.17,62807.0,62806.0,0.05142553]
[1728243239048,0.11422761,62807.0,62806.0,0.004]
[1728243240052,0.11522761,62807.0,62806.0,0.004]
[1728243240357,0.11622761,62807.0,62806.0,0.004]
[1728243241657,0.11622761,62807.0,62806.0,0.06721869]
[1728243242256,0.11622761,62807.0,62806.0,0.004]
[1728243244161,0.0037,62814.0,62806.0,0.004]
[1728243244460,0.17,62815.0,62812.0,0.06317019]
[1728243244662,0.17,62815.0,62814.0,0.06316232]
[1728243244863,0.17,62815.0,62809.0,0.07904212]
[1728243245254,0.17,62815.0,62810.0,0.20037619]
[1728243245561,0.17,62815.0,62810.0,0.07904212]
[1728243245764,0.02324485,62817.0,62811.0,0.07904212]
[1728243245959,0.001,62814.0,62813.0,0.07904212]
[1728243246265,0.02321272,62819.0,62813.0,0.59893191]
[1728243246470,0.001,62815.0,62814.0,0.20030636]
[1728243246655,0.001,62815.0,62814.0,0.12133191]
[1728243246858,0.233667,62823.0,62814.0,0.4776]
[1728243247161,0.001,62817.0,62813.0,0.12685976]
[1728243247659,0.001,62814.0,62813.0,0.13285976]
[1728243247864,0.19345137,62823.0,62816.0,0.063674]
[1728243248055,0.19345137,62823.0,62818.0,0.04739682]
[1728243248251,0.19345137,62823.0,62816.0,0.063674]
[1728243248252,0.19345137,62823.0,62819.0,0.04739682]
[1728243249163,0.19445137,62823.0,62820.0,0.04739682]
[1728243249768,0.19345137,62823.0,62820.0,0.04739682]
[1728243250164,0.19345137,62823.0,62821.0,0.04739682]
[1728243250364,0.19345137,62823.0,62822.0,0.3608]
[1728243250365,0.19445137,62823.0,62822.0,0.3608]
[1728243250671,0.19445137,62823.0,62822.0,0.40819682]
[1728243252761,0.001,62823.0,62822.0,0.3608]
[1728243252965,0.001,62823.0,62822.0,0.42399577]
[1728243253163,0.001,62823.0,62822.0,0.42599577]
[1728243253476,0.001,62823.0,62822.0,0.3628]
[1728243255079,0.00804563,62829.0,62822.0,0.3628]
[1728243255265,0.19302415,62831.0,62822.0,0.3628]
[1728243255464,0.00814585,62830.0,62822.0,0.3628]
[1728243255671,0.00814585,62830.0,62822.0,0.5328]
[1728243255875,0.06366,62831.0,62822.0,0.5328]
[1728243256061,0.00800499,62830.0,62822.0,0.5328]
[1728243256265,0.001,62829.0,62822.0,0.5328]
[1728243256866,0.001,62829.0,62822.0,0.3608]
[1728243257072,0.17,62827.0,62823.0,0.0314]
[1728243257571,0.17,62827.0,62824.0,0.0329]
[1728243259573,0.17,62827.0,62824.0,0.0369]
[1728243259574,0.171,62827.0,62824.0,0.0369]
[1728243259767,0.172,62827.0,62824.0,0.0369]
[1728243260668,0.173,62827.0,62824.0,0.0369]
[1728243261580,0.173,62827.0,62824.0,0.004]
[1728243261581,0.063665,62826.0,62824.0,0.004]
[1728243262883,0.003,62826.0,62824.0,0.003]
[1728243263690,0.066664,62826.0,62824.0,0.003]
[1728243273282,0.003,62826.0,62824.0,0.003]
[1728243273479,0.003,62826.0,62824.0,0.066666]
[1728243273784,0.003,62826.0,62825.0,0.0307]
[1728243275275,0.002,62826.0,62825.0,0.0337]
[1728243275882,0.00800499,62830.0,62825.0,0.097364]
[1728243276095,0.003,62826.0,62825.0,0.097364]
[1728243277082,0.003,62830.0,62828.0,0.063662]
[1728243277582,0.00238802,62833.0,62829.0,0.065]
[1728243277784,0.00238802,62833.0,62831.0,0.06345707]
[1728243277985,0.00238802,62833.0,62832.0,0.06345281]
[1728243278283,0.01027084,62833.0,62832.0,0.06345281]
[1728243279278,0.01127084,62833.0,62832.0,0.06345281]
[1728243279476,0.00338802,62833.0,62831.0,0.063659]
[1728243279788,0.01238802,62833.0,62832.0,0.001]
[1728243280491,0.01238802,62833.0,62832.0,0.07997845]
[1728243280995,0.01238802,62833.0,62832.0,0.55741845]
[1728243281694,0.01238802,62833.0,62832.0,0.47844]
[1728243281885,0.01238802,62833.0,62832.0,0.001]
[1728243282185,0.01138802,62833.0,62832.0,0.47844]
[1728243282395,0.01138802,62833.0,62832.0,0.07997845]
[1728243282690,0.01138802,62833.0,62832.0,0.001]
[1728243282892,0.01238802,62833.0,62832.0,0.001]
[1728243284075,0.01238802,62833.0,62832.0,1.07844]
[1728243284281,0.0037,62841.0,62839.0,0.063651]
[1728243284590,0.04885146,62840.0,62839.0,0.063651]
[1728243285594,0.04885146,62840.0,62839.0,0.064651]
[1728243286092,0.06285146,62840.0,62839.0,0.064651]
[1728243286976,0.07085146,62840.0,62839.0,0.064651]
[1728243287175,0.07084887,62840.0,62839.0,0.064651]
[1728243287484,0.0037,62849.0,62842.0,0.063648]
[1728243287693,0.23364,62850.0,62843.0,0.0613]
[1728243288497,0.19315247,62850.0,62843.0,0.0613]
[1728243288791,0.063643,62847.0,62843.0,0.0613]
[1728243289695,0.063643,62847.0,62843.0,0.0623]
[1728243289993,0.066643,62847.0,62843.0,0.0623]
[1728243291392,0.066643,62847.0,62843.0,0.0613]
[1728243291688,0.066643,62847.0,62846.0,0.3608]
[1728243291892,0.066643,62847.0,62843.0,0.0633]
[1728243292088,0.17,62846.0,62843.0,0.0633]
[1728243292385,0.17,62846.0,62839.0,0.0326]
[1728243292587,0.17,62841.0,62839.0,0.0326]
[1728243293682,0.17,62841.0,62839.0,0.0356]
[1728243295289,0.063642,62848.0,62839.0,0.0356]
[1728243295492,0.063642,62848.0,62842.0,0.063648]
[1728243296595,0.064642,62848.0,62842.0,0.063648]
[1728243298194,0.064642,62848.0,62843.0,0.063647]
[1728243300198,0.063643,62847.0,62842.0,0.006]
[1728243300393,0.063644,62846.0,62842.0,0.006]
[1728243300597,0.001,62848.0,62842.0,0.006]
[1728243300598,0.17,62845.0,62842.0,0.006]
[1728243300893,0.063646,62844.0,62842.0,0.006]
[1728243301491,0.001,62848.0,62843.0,0.063647]
[1728243301689,0.04884413,62847.0,62843.0,0.063647]
[1728243301892,0.08650206,62849.0,62843.0,0.068647]
[1728243302098,0.04884412,62848.0,62843.0,0.068647]
[1728243302394,0.08650206,62849.0,62843.0,0.068647]
[1728243302598,0.04884265,62848.0,62843.0,0.068647]
[1728243302789,0.08650206,62849.0,62843.0,0.068647]
[1728243302991,0.04884265,62848.0,62843.0,0.068647]
[1728243303297,0.08650206,62849.0,62843.0,0.068647]
[1728243303505,0.04884265,62848.0,62843.0,0.068647]
[1728243303695,0.08650206,62849.0,62843.0,0.005]
[1728243303900,0.1737,62853.0,62846.0,0.17]
[1728243303901,0.0037,62853.0,62846.0,0.17]
[1728243304101,0.04884244,62852.0,62847.0,0.031]
[1728243304302,0.04884244,62851.0,62847.0,0.031]
[1728243304503,0.04884244,62850.0,62848.0,0.063641]
[1728243304694,0.04884244,62849.0,62848.0,0.063641]
[1728243305505,0.04884244,62849.0,62847.0,0.031]
[1728243305506,0.063642,62848.0,62845.0,0.3608]
[1728243305691,0.04884359,62847.0,62843.0,0.005]
[1728243305896,0.063642,62848.0,62843.0,0.005]
[1728243306196,0.04884408,62847.0,62842.0,0.063647]
[1728243306394,0.063642,62848.0,62842.0,0.063647]
[1728243306590,0.04884292,62847.0,62842.0,0.063647]
[1728243306790,0.063642,62848.0,62842.0,0.063647]
[1728243306995,0.063642,62848.0,62843.0,0.068647]
[1728243307808,0.063643,62847.0,62843.0,0.005]
[1728243308599,0.063643,62847.0,62842.0,0.006]
[1728243309609,0.063643,62847.0,62843.0,0.005]
[1728243310197,0.063643,62847.0,62841.0,0.063649]
[1728243310397,0.064643,62847.0,62842.0,0.006]
[1728243310792,0.064643,62847.0,62842.0,0.069647]
[1728243312001,0.063643,62847.0,62843.0,0.005]
[1728243312796,0.001,62847.0,62842.0,0.006]
[1728243313004,0.001,62847.0,62843.0,0.063647]
[1728243313599,0.0037,62854.0,62843.0,0.005]
[1728243313808,0.3608,62855.0,62843.0,0.005]
[1728243313994,0.3608,62855.0,62848.0,0.063642]
[1728243314692,0.424435,62855.0,62848.0,0.063642]
[1728243315696,0.424435,62855.0,62843.0,0.05254592]
[1728243315896,0.424435,62855.0,62849.0,0.063641]
[1728243316097,0.063635,62855.0,62849.0,0.063641]
[1728243316502,0.02274813,62855.0,62849.0,0.063641]
[1728243316813,0.26003058,62861.0,62851.0,0.063639]
[1728243316999,0.26003058,62861.0,62848.0,0.0304]
[1728243317000,0.25633058,62861.0,62852.0,0.063638]
[1728243317504,0.001,62855.0,62851.0,0.17]
[1728243317804,0.001,62855.0,62854.0,0.233636]
[1728243318897,0.001,62855.0,62854.0,0.213636]
[1728243319100,0.004,62861.0,62854.0,0.17]
[1728243319304,0.004,62861.0,62859.0,0.06363]
[1728243319500,0.004,62861.0,62858.0,0.36256]
[1728243319701,0.004,62861.0,62858.0,0.3608]
[1728243319908,0.17,62862.0,62858.0,0.3608]
[1728243319909,0.06363,62860.0,62858.0,0.3608]
[1728243320212,0.09613,62860.0,62858.0,0.3608]
[1728243320908,0.09613,62860.0,62858.0,0.3618]
[1728243321311,0.09613,62860.0,62858.0,0.001]
[1728243322102,0.04884165,62859.0,62858.0,0.001]
[1728243322309,0.04884165,62859.0,62858.0,0.002]
[1728243323614,0.04884165,62859.0,62858.0,0.001]
[1728243323817,0.05884165,62859.0,62858.0,0.002]
[1728243324507,0.11591273,62859.0,62858.0,0.002]
[1728243324807,0.11591206,62859.0,62858.0,0.002]
[1728243325419,0.11991206,62859.0,62858.0,0.001]
[1728243326618,0.06284098,62859.0,62858.0,0.001]
[1728243329222,0.014,62859.0,62858.0,0.001]
[1728243331514,0.3748,62859.0,62858.0,0.001]
[1728243333315,0.014,62859.0,62858.0,0.001]
[1728243336217,0.06284163,62859.0,62858.0,0.001]
[1728243336826,0.063638,62852.0,62851.0,0.0037]
[1728243337027,0.06364,62850.0,62846.0,0.3608]
[1728243337226,0.17,62847.0,62846.0,0.3608]
[1728243337418,0.21884163,62847.0,62846.0,0.3608]
[1728243337618,0.27591269,62847.0,62846.0,0.3608]
[1728243338223,0.27591269,62847.0,62846.0,0.3618]
[1728243339320,0.22707106,62847.0,62846.0,0.3618]
[1728243339528,0.27591474,62847.0,62846.0,0.3608]
[1728243339721,0.28591474,62847.0,62846.0,0.3618]
[1728243340024,0.28591474,62847.0,62846.0,0.001]
[1728243342718,1.36327474,62847.0,62846.0,0.001]
[1728243343124,1.36327474,62847.0,62839.0,0.0037]
[1728243343125,0.06365,62840.0,62839.0,0.0037]
[1728243343326,0.28249368,62840.0,62833.0,0.032]
[1728243343532,0.12237155,62846.0,62833.0,0.032]
[1728243343533,0.10591474,62839.0,62833.0,0.032]
[1728243343734,0.04884368,62838.0,62833.0,0.202]
[1728243343920,0.04884368,62837.0,62833.0,0.202]
[1728243344115,0.0037,62845.0,62833.0,0.202]
[1728243344116,0.1737,62845.0,62833.0,0.202]
[1728243344337,0.0037,62848.0,62843.0,0.063647]
[1728243344631,0.53318758,62853.0,62844.0,0.0935]
[1728243344632,0.3608,62847.0,62844.0,0.0935]
[1728243345022,0.53402758,62853.0,62844.0,0.0935]